bitfinex-derivatives/quotes_SOLF0:USTF0_20260123
["timestamp","ask_amount","ask_price","bid_price","bid_amount"]
[1769172080655,10.30624416,127.3,127.25,3.24773749]
[1769172080962,3.22634416,127.32,127.26,3.24773749]
[1769172081964,10.30474416,127.32,127.26,10.32933749]
[1769172082664,10.30474416,127.32,127.25,2.10980985]
[1769172082665,3.22634416,127.3,127.25,2.10980985]
[1769172082863,3.22634416,127.3,127.24,10.32993749]
[1769172083965,10.30584416,127.3,127.24,10.32993749]
[1769172084367,3.22634416,127.3,127.25,3.24773749]
[1769172084562,10.30504416,127.32,127.26,3.24773749]
[1769172084770,3.22634416,127.31,127.26,3.24773749]
[1769172086270,3.22634416,127.31,127.26,10.32933749]
[1769172090961,5.33615401,127.33,127.27,10.32873749]
[1769172093160,2.10980985,127.33,127.28,3.19771619]
[1769172093970,9.18760985,127.33,127.28,3.19771619]
[1769172094669,12.47364068,127.33,127.28,3.19771619]
[1769172095777,12.47294068,127.35,127.29,3.19771619]
[1769172096276,10.36313083,127.35,127.3,3.19771619]
[1769172100477,12.47294068,127.35,127.3,3.19771619]
[1769172113981,12.47294068,127.35,127.3,10.27711619]
[1769172114190,10.36313083,127.35,127.3,10.27711619]
[1769172116397,3.28603083,127.35,127.3,10.27711619]
[1769172116795,0.05083188,127.34,127.31,0.05063752]
[1769172120000,0.05083188,127.34,127.31,3.24835371]
[1769172122502,0.05083188,127.34,127.31,10.32715371]
[1769172123203,10.26006184,127.37,127.31,10.32715371]
[1769172123596,3.18406184,127.36,127.31,10.32715371]
[1769172124904,5.29162981,127.38,127.32,10.45028482]
[1769172125699,3.18406184,127.37,127.34,0.05042492]
[1769172145330,3.18406184,127.37,127.32,10.45028482]
[1769172147424,3.30152367,127.43,127.35,3.41096334]
[1769172147635,3.30152367,127.43,127.38,2.10756797]
[1769172147822,3.30152367,127.43,127.38,3.41096334]
[1769172150526,3.30152367,127.43,127.38,10.48576334]
[1769172151331,3.30152367,127.43,127.38,3.41096334]
[1769172152632,5.57873428,127.42,127.37,7.0755]
[1769172153433,3.47116631,127.41,127.37,7.0755]
[1769172153935,0.05738784,127.4,127.37,7.0755]
[1769172155528,0.05738784,127.4,127.37,7.12814963]
[1769172158032,0.05738784,127.4,127.37,0.05264963]
[1769172160137,3.52855415,127.4,127.37,0.05264963]
[1769172160433,3.52855415,127.4,127.34,3.21375258]
[1769172161133,10.60245415,127.4,127.34,10.29085258]
[1769172161535,10.60245415,127.4,127.32,10.29155258]
[1769172161536,3.47116631,127.38,127.32,10.29155258]
[1769172162331,0.05932921,127.36,127.32,10.29155258]
[1769172175539,0.05932921,127.36,127.33,3.21375258]
[1769172180449,7.0744,127.39,127.33,3.21375258]
[1769172180748,3.47116631,127.42,127.35,5.32104176]
[1769172180949,3.47116631,127.41,127.36,3.21375258]
[1769172181148,7.0744,127.4,127.36,3.21375258]
[1769172182046,7.0734,127.41,127.36,3.21375258]
[1769172182352,3.63399986,127.46,127.38,2.10728918]
[1769172182554,5.74128904,127.46,127.39,3.37739515]
[1769172183050,7.0717,127.44,127.39,3.37739515]
[1769172184755,7.0724,127.43,127.39,3.37739515]
[1769172188056,10.70569986,127.44,127.39,3.37739515]
[1769172192152,7.0717,127.44,127.39,3.37739515]
[1769172196959,10.53073403,127.44,127.39,3.37739515]
[1769172205764,10.53073403,127.44,127.39,10.45179515]
[1769172209375,12.63802321,127.44,127.39,10.45179515]
[1769172211569,5.56632321,127.44,127.39,10.45179515]
[1769172213370,3.30595698,127.43,127.39,10.45179515]
[1769172218770,10.37705698,127.45,127.4,3.29972009]
[1769172218971,12.48434616,127.45,127.4,3.29972009]
[1769172219169,3.30595698,127.44,127.39,7.0744]
[1769172219371,5.41324616,127.43,127.38,10.37462009]
[1769172220465,5.41324616,127.43,127.39,7.0744]
[1769172221882,3.30595698,127.42,127.38,10.37462009]
[1769172223083,5.41324616,127.41,127.38,7.0749]
[1769172223282,5.41324616,127.41,127.36,10.37522009]
[1769172224274,3.30595698,127.4,127.36,10.37522009]
[1769172233491,2.10728918,127.41,127.36,10.37522009]
[1769172233787,5.41324616,127.41,127.36,10.37522009]
[1769172239387,2.10728918,127.41,127.37,3.29972009]
[1769172239592,10.37865698,127.42,127.37,3.29972009]
[1769172241495,3.30595698,127.37,127.32,3.29972009]
[1769172241689,5.83588335,127.36,127.32,3.29972009]
[1769172241888,5.41196895,127.37,127.32,3.29972009]
[1769172242786,5.94327832,127.36,127.32,3.29972009]
[1769172242988,16.38248704,127.36,127.32,3.29972009]
[1769172243190,10.43920872,127.36,127.32,3.29972009]
[1769172250804,10.53400162,127.38,127.32,3.29972009]
[1769172251097,3.45900162,127.36,127.28,2.10601197]
[1769172251297,3.45900162,127.36,127.29,3.27372939]
[1769172252798,3.45900162,127.34,127.27,3.27372939]
[1769172253202,10.53630162,127.34,127.28,12.46014136]
[1769172254392,10.53630162,127.34,127.29,3.27372939]
[1769172262200,10.53550162,127.36,127.3,3.27372939]
[1769172269319,10.53550162,127.36,127.3,10.35302939]
[1769172269517,3.45900162,127.36,127.31,3.27372939]
[1769172271120,3.45900162,127.36,127.31,10.35252939]
[1769172272119,3.45900162,127.36,127.32,3.27390407]
[1769172272615,3.45900162,127.36,127.32,10.35210407]
[1769172279221,10.52101941,127.38,127.32,10.35210407]
[1769172279623,10.52101941,127.38,127.33,3.27390407]
[1769172280618,3.44581941,127.38,127.33,10.35160407]
[1769172281218,9.83396573,127.38,127.33,10.35160407]
[1769172287832,9.83396573,127.38,127.33,12.45761604]
[1769172288130,3.44581941,127.38,127.34,10.35100407]
[1769172290032,5.55183138,127.4,127.34,10.35100407]
[1769172290234,12.23721963,127.39,127.34,10.35100407]
[1769172290435,3.44581941,127.39,127.35,7.0766]
[1769172290841,9.74174194,127.39,127.35,7.0766]
[1769172291037,3.44581941,127.39,127.35,7.0766]
[1769172294042,3.44581941,127.41,127.36,10.34990407]
[1769172294539,9.7390904,127.41,127.36,10.34990407]
[1769172294834,9.7390904,127.41,127.37,7.0755]
[1769172295038,3.44581941,127.41,127.37,7.0755]
[1769172300553,3.44581941,127.41,127.36,3.27390407]
[1769172300852,5.55183138,127.4,127.34,3.27390407]
[1769172302052,5.55183138,127.4,127.35,10.32306591]
[1769172302757,3.44581941,127.4,127.35,10.32306591]
[1769172309657,3.23868862,127.39,127.33,10.35708467]
[1769172309866,9.17552562,127.38,127.33,10.35708467]
[1769172310059,3.23868862,127.38,127.33,10.35708467]
[1769172319358,3.23868862,127.38,127.34,3.27978467]
[1769172319560,9.53105748,127.38,127.34,3.27978467]
[1769172319767,3.23868862,127.38,127.34,3.27978467]
[1769172320166,9.53392895,127.38,127.34,3.27978467]
[1769172320369,5.94342926,127.37,127.34,3.27978467]
[1769172323870,10.31298862,127.4,127.35,3.27978467]
[1769172324169,12.24248863,127.39,127.35,3.27978467]
[1769172324369,3.23868862,127.4,127.35,3.27978467]
[1769172324567,5.94563853,127.39,127.35,3.27978467]
[1769172325872,13.02003853,127.39,127.35,3.27978467]
[1769172326172,10.31308862,127.39,127.33,5.38625561]
[1769172326375,12.24361275,127.38,127.33,5.38625561]
[1769172326563,10.31308862,127.39,127.33,5.38625561]
[1769172326760,12.2413945,127.38,127.33,5.38625561]
[1769172326964,10.31308862,127.39,127.33,5.38625561]
[1769172327165,12.24139754,127.38,127.34,3.27978467]
[1769172327364,10.31308862,127.39,127.34,3.27978467]
[1769172327564,12.24179619,127.38,127.34,3.27978467]
[1769172327766,10.31308862,127.39,127.34,3.27978467]
[1769172327967,12.24179619,127.38,127.34,3.27978467]
[1769172328265,10.31308862,127.39,127.34,3.27978467]
[1769172328468,12.24220611,127.38,127.34,3.27978467]
[1769172328767,10.31308862,127.39,127.34,3.27978467]
[1769172328960,12.24220611,127.38,127.34,3.27978467]
[1769172329161,10.31308862,127.39,127.34,3.27978467]
[1769172329365,12.24258343,127.38,127.34,3.27978467]
[1769172329569,10.31308862,127.39,127.34,3.27978467]
[1769172329769,12.24263769,127.38,127.34,3.27978467]
[1769172329970,10.31308862,127.39,127.34,3.27978467]
[1769172330170,12.24250289,127.38,127.34,3.27978467]
[1769172330364,10.31308862,127.39,127.34,3.27978467]
[1769172331072,12.24286733,127.38,127.34,3.27978467]
[1769172331263,10.31308862,127.39,127.34,3.27978467]
[1769172331467,5.94442179,127.38,127.34,3.27978467]
[1769172342084,5.94442179,127.38,127.34,10.35688467]
[1769172353299,3.23868862,127.39,127.34,10.35688467]
[1769172353496,12.25532756,127.38,127.34,10.35688467]
[1769172353700,3.23868862,127.39,127.34,10.35688467]
[1769172353890,12.25532756,127.38,127.34,10.35688467]
[1769172354089,3.23868862,127.39,127.34,10.35688467]
[1769172354295,12.25529561,127.38,127.34,10.35688467]
[1769172354596,3.23868862,127.39,127.34,10.35688467]
[1769172354796,5.9523107,127.38,127.34,10.35688467]
[1769172355494,9.39137109,127.38,127.34,10.35688467]
[1769172355787,3.43906039,127.38,127.34,10.35688467]
[1769172358498,9.68780002,127.38,127.34,10.35688467]
[1769172358698,3.43906039,127.38,127.34,10.35688467]
[1769172359092,9.68783515,127.38,127.34,10.35688467]
[1769172359294,3.43906039,127.38,127.34,10.35688467]
[1769172359699,9.68797413,127.38,127.34,10.35688467]
[1769172359998,3.43906039,127.38,127.34,10.35688467]
[1769172360389,9.68797413,127.38,127.34,10.35688467]
[1769172360588,3.43906039,127.38,127.34,10.35688467]
[1769172360802,9.39547438,127.37,127.33,7.0777]
[1769172361002,5.95641399,127.36,127.33,7.0777]
[1769172362702,3.43906039,127.37,127.33,7.0777]
[1769172362899,5.95514259,127.36,127.33,7.0777]
[1769172363600,3.43906039,127.37,127.33,7.0777]
[1769172363801,3.43906039,127.37,127.33,10.34658389]
[1769172364206,9.68662498,127.37,127.33,10.34658389]
[1769172364404,3.43906039,127.37,127.33,10.34658389]
[1769172364904,5.95455336,127.36,127.33,10.34658389]
[1769172365306,3.43906039,127.37,127.33,10.34658389]
[1769172365802,9.68589069,127.37,127.33,10.34658389]
[1769172366002,3.43906039,127.37,127.33,10.34658389]
[1769172366206,5.95408717,127.36,127.33,10.34658389]
[1769172366397,3.43906039,127.37,127.33,10.34658389]
[1769172366797,9.68572293,127.37,127.33,10.34658389]
[1769172367003,3.43906039,127.37,127.33,10.34658389]
[1769172367407,9.68560256,127.37,127.33,10.34658389]
[1769172367608,3.43906039,127.37,127.33,10.34658389]
[1769172368104,9.68571439,127.37,127.33,10.34658389]
[1769172368304,3.43906039,127.37,127.33,10.34658389]
[1769172368807,9.68563967,127.37,127.31,12.41279248]
[1769172369001,3.35963181,127.35,127.3,3.22704598]
[1769172369200,9.6039716,127.35,127.3,3.22704598]
[1769172369401,3.35963181,127.35,127.3,3.22704598]
[1769172369601,9.60399615,127.35,127.3,3.22704598]
[1769172371601,9.60399615,127.35,127.31,0.05907877]
[1769172371909,0.05418698,127.34,127.31,0.05907877]
[1769172375603,3.35963181,127.33,127.28,215.70620637]
[1769172375805,3.35963181,127.32,127.26,3.22704598]
[1769172377009,0.05697357,127.3,127.26,10.30864598]
[1769172377209,0.05697357,127.3,127.27,3.22704598]
[1769172381318,3.35963181,127.32,127.27,10.30814598]
[1769172381714,3.35963181,127.32,127.27,3.22704598]
[1769172383512,3.35963181,127.32,127.27,10.30814598]
[1769172391426,3.35963181,127.34,127.28,3.22704598]
[1769172391726,3.35963181,127.34,127.29,5.33439248]
[1769172392918,3.35963181,127.34,127.29,12.41419248]
[1769172394424,7.0767,127.35,127.3,3.15964198]
[1769172394923,10.30859676,127.35,127.3,3.15964198]
[1769172398533,3.23189676,127.34,127.29,9.1871465]
[1769172398721,3.23189676,127.34,127.28,10.24014198]
[1769172405852,3.23189676,127.34,127.29,3.15964198]
[1769172408151,9.42577895,127.34,127.29,3.15964198]
[1769172409355,5.95781465,127.33,127.29,3.15964198]
[1769172418354,10.30919676,127.34,127.29,3.15964198]
[1769172418556,12.16955834,127.33,127.29,3.15964198]
[1769172418853,10.30919676,127.34,127.29,3.15964198]
[1769172419152,12.16955834,127.33,127.29,3.15964198]
[1769172419354,5.96480613,127.32,127.29,3.15964198]
[1769172419552,10.30919676,127.34,127.29,3.15964198]
[1769172419753,12.17143515,127.33,127.29,3.15964198]
[1769172419959,5.96480614,127.32,127.29,3.15964198]
[1769172420157,10.30919676,127.34,127.29,3.15964198]
[1769172420351,12.17486893,127.33,127.29,3.15964198]
[1769172420551,10.30919676,127.34,127.29,3.15964198]
[1769172420552,5.96604933,127.32,127.29,3.15964198]
[1769172420753,10.30919676,127.34,127.29,3.15964198]
[1769172420954,12.17505821,127.33,127.29,3.15964198]
[1769172421156,5.96662046,127.32,127.29,3.15964198]
[1769172421450,10.30919676,127.34,127.29,3.15964198]
[1769172421657,12.17523932,127.33,127.29,3.15964198]
[1769172421858,9.16505731,127.32,127.27,3.17003946]
[1769172422054,3.19834338,127.32,127.27,3.17003946]
[1769172424864,3.19834338,127.32,127.27,5.27871377]
[1769172428569,9.40881853,127.32,127.27,12.35971377]
[1769172428769,5.96844848,127.31,127.27,12.35971377]
[1769172429168,5.96844848,127.31,127.27,10.25103946]
[1769172429867,9.41955774,127.3,127.26,7.0816]
[1769172430071,3.45139409,127.3,127.26,7.0816]
[1769172434963,3.45139409,127.3,127.26,10.41788531]
[1769172438873,3.45139409,127.3,127.26,3.33628531]
[1769172439057,3.45139409,127.3,127.26,5.44495962]
[1769172444676,3.45139409,127.3,127.26,3.33628531]
[1769172452479,10.53079409,127.3,127.26,3.33628531]
[1769172453681,10.53079409,127.3,127.25,2.10867431]
[1769172454478,10.53079409,127.3,127.25,5.61028196]
[1769172463688,3.45139409,127.3,127.25,5.61028196]
[1769172464499,3.45139409,127.3,127.25,12.69238196]
[1769172467193,9.65878484,127.3,127.25,12.69238196]
[1769172469388,5.97234631,127.29,127.25,12.69238196]
[1769172474194,3.45139409,127.3,127.25,12.69238196]
[1769172474396,5.97760917,127.29,127.25,12.69238196]
[1769172474596,3.45139409,127.3,127.25,12.69238196]
[1769172474797,5.97760917,127.29,127.25,12.69238196]
[1769172475000,3.45139409,127.3,127.25,12.69238196]
[1769172475203,5.97760917,127.29,127.25,12.69238196]
[1769172475497,3.45139409,127.3,127.25,12.69238196]
[1769172475699,5.97784805,127.29,127.25,12.69238196]
[1769172475899,9.66641348,127.3,127.25,12.69238196]
[1769172475900,3.45139409,127.3,127.25,12.69238196]
[1769172476094,5.97824799,127.29,127.25,12.69238196]
[1769172476294,3.45139409,127.3,127.25,12.69238196]
[1769172476494,5.97851336,127.29,127.25,12.69238196]
[1769172476698,3.45139409,127.3,127.25,12.69238196]
[1769172476887,5.97491604,127.29,127.25,12.69238196]
[1769172477089,3.45139409,127.3,127.25,12.69238196]
[1769172477291,5.97491706,127.29,127.25,12.69238196]
[1769172477602,3.45139409,127.3,127.25,12.69238196]
[1769172477806,5.97521737,127.29,127.25,12.69238196]
[1769172477996,3.45139409,127.3,127.25,12.69238196]
[1769172478301,5.97521738,127.29,127.25,12.69238196]
[1769172478496,3.45139409,127.3,127.25,12.69238196]
[1769172478694,5.97555801,127.29,127.25,12.69238196]
[1769172478895,3.45139409,127.3,127.25,12.69238196]
[1769172479195,5.97555801,127.29,127.25,10.58370765]
[1769172479394,3.45139409,127.3,127.25,10.58370765]
[1769172479597,5.97594616,127.29,127.25,10.58370765]
[1769172479797,3.45139409,127.3,127.25,10.58370765]
[1769172479997,5.97594616,127.29,127.25,10.58370765]
[1769172480199,3.45139409,127.3,127.25,10.58370765]
[1769172480401,5.97672853,127.29,127.25,10.58370765]
[1769172480599,3.45139409,127.3,127.25,10.58370765]
[1769172480803,5.97675167,127.29,127.25,10.58370765]
[1769172481005,3.45139409,127.3,127.25,10.58370765]
[1769172481204,5.97675167,127.29,127.26,0.04977502]
[1769172481401,3.45139409,127.3,127.26,0.04977502]
[1769172481706,5.97730448,127.29,127.26,0.04977502]
[1769172481909,3.45139409,127.3,127.26,0.04977502]
[1769172482205,6.02842931,127.29,127.26,0.04977502]
[1769172482394,0.05114136,127.29,127.26,0.04977502]
[1769172483009,0.05114136,127.29,127.26,10.49233562]
[1769172483204,10.33140999,127.32,127.26,10.49233562]
[1769172483503,12.19833671,127.31,127.26,10.49233562]
[1769172483705,5.97871441,127.3,127.26,10.49233562]
[1769172483905,5.97871441,127.29,127.26,10.49233562]
[1769172484102,10.33140999,127.32,127.26,10.49233562]
[1769172484304,12.05954522,127.31,127.26,10.49233562]
[1769172484501,5.9790944,127.3,127.27,3.3609606]
[1769172484808,10.33080999,127.33,127.28,3.3609606]
[1769172485109,6.08038728,127.32,127.28,3.3609606]
[1769172485511,6.08038728,127.32,127.29,0.0570208]
[1769172485808,3.25300999,127.33,127.29,0.0570208]
[1769172486111,9.33109728,127.33,127.29,0.0570208]
[1769172486301,6.07684228,127.32,127.29,0.0570208]
[1769172486500,3.25300999,127.33,127.29,0.0570208]
[1769172486801,9.32971328,127.33,127.29,0.0570208]
[1769172490109,3.38633883,127.32,127.26,5.29450351]
[1769172490411,9.45937222,127.32,127.26,5.29450351]
[1769172490604,9.45937222,127.32,127.27,3.18590169]
[1769172492707,3.38633883,127.31,127.27,3.18590169]
[1769172492917,3.38633883,127.31,127.26,9.19020182]
[1769172493210,3.38633883,127.31,127.26,7.0816]
[1769172493597,3.38633883,127.3,127.25,3.18590169]
[1769172494811,3.38633883,127.29,127.24,10.26810169]
[1769172495007,3.38633883,127.28,127.22,221.92508855]
[1769172495704,0.05204874,127.26,127.22,221.92508855]
[1769172496011,0.05204874,127.26,127.24,0.05042629]
[1769172500515,3.38633883,127.28,127.24,0.05042629]
[1769172501319,10.46583883,127.3,127.24,10.31892798]
[1769172501520,5.93536686,127.29,127.24,10.31892798]
[1769172501718,5.93536686,127.29,127.24,10.26850169]
[1769172501911,9.32170569,127.29,127.24,10.26850169]
[1769172502122,3.38633883,127.29,127.25,0.05489544]
[1769172513540,3.38633883,127.29,127.25,2.16349726]
[1769172522348,3.29786718,127.31,127.25,5.48012816]
[1769172522549,5.9154518,127.3,127.25,5.48012816]
[1769172523947,5.9154518,127.3,127.26,7.0812]
[1769172528249,3.29786718,127.31,127.27,3.3166309]
[1769172529150,3.29786718,127.31,127.28,0.05150969]
[1769172530052,3.29786718,127.31,127.26,7.0812]
[1769172532257,0.05955471,127.3,127.27,0.05511124]
[1769172533057,0.05955471,127.3,127.27,7.13601124]
[1769172537757,0.05955471,127.3,127.27,10.45264214]
[1769172541259,0.05955471,127.3,127.27,7.13601124]
[1769172543461,0.05955471,127.3,127.28,7.0805]
[1769172545562,0.05955471,127.3,127.27,7.13621124]
[1769172551770,3.36759476,127.33,127.28,10.47037313]
[1769172551971,5.91200045,127.32,127.28,10.47037313]
[1769172553174,5.91200045,127.32,127.28,3.38997313]
[1769172553473,5.91200045,127.32,127.29,0.05223415]
[1769172555372,5.91200045,127.31,127.29,0.05223415]
[1769172555562,3.36759476,127.33,127.29,0.05223415]
[1769172555767,5.91290103,127.32,127.29,0.05223415]
[1769172555964,5.91290103,127.31,127.29,0.05223415]
[1769172556170,3.36759476,127.33,127.29,0.05223415]
[1769172556379,9.28043224,127.32,127.29,0.05223415]
[1769172556673,5.91283748,127.31,127.29,0.05223415]
[1769172557978,3.36759476,127.32,127.29,0.05223415]
[1769172559380,5.91422088,127.31,127.29,0.05223415]
[1769172559580,306.98638538,127.34,127.29,3.44220728]
[1769172559777,5.9151786,127.33,127.29,3.44220728]
[1769172560181,5.9151786,127.33,127.3,7.0794]
[1769172560384,306.98638538,127.34,127.3,7.0794]
[1769172560885,3.36759476,127.34,127.3,7.0794]
[1769172561276,5.91494367,127.33,127.3,7.0794]
[1769172561471,3.36759476,127.34,127.3,7.0794]
[1769172563792,6.03661292,127.35,127.3,10.46937313]
[1769172563988,5.91393508,127.34,127.3,10.46937313]
[1769172564488,5.47725546,127.36,127.3,10.46937313]
[1769172564675,5.91350343,127.35,127.3,10.46937313]
[1769172564878,5.91350343,127.34,127.3,10.46937313]
[1769172565276,5.91350343,127.34,127.31,0.05216637]
[1769172565482,3.36759476,127.35,127.31,0.05216637]
[1769172565879,5.91296848,127.34,127.31,0.05216637]
[1769172566076,3.36759476,127.35,127.31,0.05216637]
[1769172566289,5.91369805,127.34,127.31,0.05216637]
[1769172566492,3.36759476,127.35,127.31,0.05216637]
[1769172566992,9.28038778,127.34,127.31,0.05216637]
[1769172567182,9.28038778,127.34,127.28,2.1096607]
[1769172567183,3.36759476,127.33,127.29,7.0799]
[1769172568181,2.1096607,127.34,127.3,7.0793]
[1769172568382,5.47725546,127.34,127.3,7.0793]
[1769172568595,5.91279651,127.33,127.28,3.38997313]
[1769172569895,5.91279651,127.33,127.29,7.0799]
[1769172570693,5.47725546,127.34,127.29,7.0799]
[1769172570894,5.91302776,127.33,127.29,7.0799]
[1769172571792,5.47725546,127.34,127.29,7.0799]
[1769172572383,5.9135519,127.33,127.29,7.0799]
[1769172575103,3.36759476,127.34,127.29,7.0799]
[1769172580499,3.36759476,127.34,127.28,10.47047313]
[1769172580912,5.91315065,127.33,127.28,10.47047313]
[1769172581813,308.85565483,127.38,127.33,1.09539964]
[1769172582918,315.93075483,127.38,127.33,1.09539964]
[1769172586011,10.45977378,127.38,127.33,1.09539964]
[1769172586611,7.0755,127.37,127.33,1.09539964]
[1769172587313,3.38467378,127.37,127.33,1.09539964]
[1769172588614,3.38467378,127.37,127.32,1.09539964]
[1769172594226,3.38467378,127.37,127.32,8.17359964]
[1769172596622,3.38467378,127.37,127.32,10.28326034]
[1769172597730,3.38467378,127.37,127.33,7.0777]
[1769172600531,3.38467378,127.39,127.33,8.17309964]
[1769172600726,3.38467378,127.39,127.33,10.28276034]
[1769172601331,5.87766938,127.38,127.33,10.28276034]
[1769172602030,3.3537087,127.41,127.36,1.09236728]
[1769172607233,10.4270087,127.41,127.36,1.09236728]
[1769172607530,3.3537087,127.41,127.36,1.09236728]
[1769172609935,10.4270087,127.41,127.36,1.09236728]
[1769172612435,10.4270087,127.41,127.36,3.19817493]
[1769172613439,10.32050552,127.42,127.37,3.19810711]
[1769172615636,3.24770552,127.41,127.37,3.19810711]
[1769172619639,3.24770552,127.41,127.37,1.09229946]
[1769172620144,3.24770552,127.43,127.38,1.09229946]
[1769172624249,10.32000552,127.43,127.38,1.09229946]
[1769172626350,5.8534425,127.42,127.38,1.09229946]
[1769172633857,9.34988845,127.42,127.38,1.09229946]
[1769172634157,3.49644595,127.42,127.38,1.09229946]
[1769172635064,3.49644595,127.42,127.37,7.0755]
[1769172636167,3.49644595,127.42,127.36,8.16843717]
[1769172636464,3.49644595,127.42,127.36,1.09243717]
[1769172637461,5.84972986,127.41,127.36,1.09243717]
[1769172637860,5.84972986,127.41,127.37,7.0755]
[1769172644368,5.84972986,127.4,127.37,7.0755]
[1769172644565,3.49644595,127.42,127.37,7.0755]
[1769172644769,5.86158042,127.41,127.37,7.0755]
[1769172644970,5.86158042,127.4,127.37,7.0755]
[1769172645171,3.49644595,127.42,127.37,7.0755]
[1769172645372,5.86208123,127.41,127.37,7.0755]
[1769172645680,5.86208123,127.4,127.37,7.0755]
[1769172645880,3.49644595,127.42,127.37,7.0755]
[1769172646077,5.86208123,127.41,127.37,7.0755]
[1769172646271,5.86208123,127.4,127.37,7.0755]
[1769172646472,3.49644595,127.42,127.37,7.0755]
[1769172646667,5.86538217,127.41,127.37,7.0755]
[1769172646873,5.86538217,127.4,127.37,7.0755]
[1769172647071,3.49644595,127.42,127.37,7.0755]
[1769172647272,5.86538217,127.41,127.37,7.0755]
[1769172647473,5.86538217,127.4,127.37,7.0755]
[1769172647783,3.49644595,127.42,127.37,7.0755]
[1769172647976,5.86564586,127.41,127.37,7.0755]
[1769172648175,5.86564586,127.4,127.37,7.0755]
[1769172648375,3.49644595,127.42,127.37,7.0755]
[1769172648575,5.86596434,127.41,127.37,7.0755]
[1769172648769,5.86596434,127.4,127.37,7.0755]
[1769172648971,3.49644595,127.42,127.37,7.0755]
[1769172649169,5.86596434,127.41,127.37,7.0755]
[1769172649473,5.86596434,127.4,127.37,7.0755]
[1769172649673,3.49644595,127.42,127.37,7.0755]
[1769172649874,5.86631858,127.41,127.37,7.0755]
[1769172650074,5.86631858,127.4,127.37,7.0755]
[1769172650369,3.49644595,127.42,127.37,7.0755]
[1769172650568,5.86671249,127.41,127.37,7.0755]
[1769172650772,5.86671249,127.4,127.37,7.0755]
[1769172650972,3.49644595,127.42,127.37,7.0755]
[1769172651182,5.86630086,127.41,127.37,7.0755]
[1769172651382,5.86630086,127.4,127.37,7.0755]
[1769172651585,3.49644595,127.42,127.37,7.0755]
[1769172651883,5.86674495,127.41,127.37,7.0755]
[1769172652079,5.86674495,127.4,127.37,7.0755]
[1769172652381,3.49644595,127.42,127.37,7.0755]
[1769172652584,5.86691606,127.41,127.37,7.0755]
[1769172652785,5.86691606,127.4,127.37,7.0755]
[1769172652983,3.49644595,127.42,127.37,7.0755]
[1769172653185,5.86691606,127.41,127.37,7.0755]
[1769172653484,5.86691606,127.4,127.37,7.0755]
[1769172653685,3.49644595,127.42,127.37,7.0755]
[1769172653987,5.86708517,127.41,127.37,7.0755]
[1769172654186,5.86708517,127.4,127.37,7.0755]
[1769172654377,3.49644595,127.42,127.37,7.0755]
[1769172654579,5.86726779,127.41,127.37,7.0755]
[1769172654781,5.86726779,127.4,127.37,7.0755]
[1769172654982,3.49644595,127.42,127.37,7.0755]
[1769172655179,5.86726779,127.41,127.37,7.0755]
[1769172655473,5.86726779,127.4,127.37,7.0755]
[1769172655678,3.49644595,127.42,127.37,7.0755]
[1769172655886,5.86746418,127.41,127.37,7.0755]
[1769172656085,5.86746418,127.4,127.37,7.0755]
[1769172656285,3.49644595,127.42,127.37,7.0755]
[1769172656475,5.86767617,127.41,127.37,7.0755]
[1769172656682,5.86767617,127.4,127.36,10.27424482]
[1769172656882,3.49644595,127.42,127.36,10.27424482]
[1769172657188,3.49644595,127.4,127.34,8.16923717]
[1769172657387,9.36140291,127.39,127.34,8.16923717]
[1769172657581,3.49644595,127.39,127.34,8.16923717]
[1769172658888,6.00911954,127.4,127.35,1.09243717]
[1769172659091,10.56974595,127.41,127.36,1.09243717]
[1769172659092,3.49644595,127.41,127.36,1.09243717]
[1769172660989,3.49644595,127.41,127.35,2.10580765]
[1769172660990,3.49644595,127.43,127.37,3.19824482]
[1769172661376,3.49644595,127.43,127.37,10.27364482]
[1769172661581,3.49644595,127.43,127.38,1.09243717]
[1769172664890,3.49644595,127.43,127.38,8.16733717]
[1769172665079,3.1739871,127.45,127.39,0.74878797]
[1769172665284,3.1739871,127.45,127.39,2.85459562]
[1769172665880,3.23241037,127.47,127.41,1.09272479]
[1769172666086,3.23241037,127.47,127.41,3.19853244]
[1769172666789,0.0498839,127.45,127.41,3.19853244]
[1769172666992,0.0498839,127.45,127.43,0.05560195]
[1769172671088,5.89788322,127.45,127.43,0.05560195]
[1769172671288,5.89788322,127.45,127.41,10.27007023]
[1769172671289,5.89788322,127.45,127.41,1.09272479]
[1769172672191,0.0498839,127.45,127.41,1.09272479]
[1769172679197,0.0498839,127.45,127.41,8.16552479]
[1769172679396,0.0498839,127.45,127.42,3.19687023]
[1769172679995,3.23241037,127.48,127.42,3.19687023]
[1769172680902,10.30181037,127.48,127.42,3.19687023]
[1769172681196,3.23241037,127.47,127.42,3.19687023]
[1769172684402,3.23241037,127.47,127.43,7.0721]
[1769172705021,3.36259108,127.48,127.43,8.16399002]
[1769172705230,3.36259108,127.48,127.43,10.26813546]
[1769172708338,3.36259108,127.48,127.43,3.19603546]
[1769172709239,5.83911176,127.47,127.43,3.19603546]
[1769172710151,5.83911176,127.47,127.44,1.09189002]